[Event "Titled Tuesday Blitz July 4 Late 2023"]
[White "Oliveira, Tiago Batista"]
[Black "Duarte, Leonardo"]
[WhiteFideId "2108291"]
[BlackFideId "110582"]
[WhiteElo "2156"]
[BlackElo "2378"]
[Result "0-1"]
[Round "3"]
[TimeControl "180+2"]
[Date "2023.07.04"]
[WhiteClock "0:00:00"]
[BlackClock "0:01:02"]
[Board "174"]

1. d4 {[%clk 0:02:55]}  Nf6 {[%clk 0:03:00]} 2. c4 {[%clk 0:02:55]}  g6 {[%clk 0:03:00]} 3. Nc3 {[%clk 0:02:54]}  Bg7 {[%clk 0:03:01]} 4. e4 {[%clk 0:02:54]}  d6 {[%clk 0:03:02]} 5. Nf3 {[%clk 0:02:54]}  O-O {[%clk 0:03:03]} 6. Be2 {[%clk 0:02:54]}  Nc6 {[%clk 0:03:03]} 7. Be3 {[%clk 0:02:53]}  Ng4 {[%clk 0:03:02]} 8. Bg5 {[%clk 0:02:51]}  h6 {[%clk 0:02:59]} 9. Bh4 {[%clk 0:02:48]}  g5 {[%clk 0:02:48]} 10. Bg3 {[%clk 0:02:48]}  Nf6 {[%clk 0:02:47]} 11. d5 {[%clk 0:02:45]}  Nb8 {[%clk 0:02:44]} 12. h4 {[%clk 0:02:43]}  g4 {[%clk 0:02:43]} 13. Nd4 {[%clk 0:02:43]}  h5 {[%clk 0:02:30]} 14. f4 {[%clk 0:02:35]}  c5 {[%clk 0:02:25]} 15. Nc2 {[%clk 0:02:28]}  Nfd7 {[%clk 0:02:09]} 16. Qd2 {[%clk 0:02:00]}  Na6 {[%clk 0:01:54]} 17. O-O-O {[%clk 0:01:57]}  Nb4 {[%clk 0:01:53]} 18. Nxb4 {[%clk 0:01:39]}  cxb4 {[%clk 0:01:54]} 19. Nb1 {[%clk 0:01:39]}  Nc5 {[%clk 0:01:49]} 20. Qc2 {[%clk 0:01:16]}  Qa5 {[%clk 0:01:46]} 21. Be1 {[%clk 0:01:05]}  Qxa2 {[%clk 0:01:40]} 22. Bxb4 {[%clk 0:01:02]}  Nxe4 {[%clk 0:01:39]} 23. Nc3 {[%clk 0:00:46]}  Qa1+ {[%clk 0:01:34]} 24. Qb1 {[%clk 0:00:44]}  Qxb1+ {[%clk 0:01:31]} 25. Kxb1 {[%clk 0:00:36]}  Nf2 {[%clk 0:01:31]} 26. Rhf1 {[%clk 0:00:21]}  Nxd1 {[%clk 0:01:30]} 27. Bxd1 {[%clk 0:00:20]}  Bf5+ {[%clk 0:01:28]} 28. Bc2 {[%clk 0:00:20]}  Bxc2+ {[%clk 0:01:26]} 29. Kxc2 {[%clk 0:00:20]}  Rfc8 {[%clk 0:01:15]} 30. Kd3 {[%clk 0:00:20]}  a6 {[%clk 0:01:09]} 31. b3 {[%clk 0:00:18]}  b5 {[%clk 0:01:06]} 32. Ne4 {[%clk 0:00:14]}  bxc4+ {[%clk 0:01:03]} 33. bxc4 {[%clk 0:00:14]}  Rab8 {[%clk 0:01:03]} 34. Bc3 {[%clk 0:00:07]}  Rb3 {[%clk 0:01:03]} 35. Ra1 {[%clk 0:00:00]}  f5 {[%clk 0:01:02]} 0-1


[Site "https://www.chess.com"]

[Event "Titled Tuesday Blitz July 4 Late 2023"]
[White "Cardenas Carbajal, Nilson"]
[Black "Prieto Aranguren, Alain"]
[WhiteFideId "8401128"]
[BlackFideId "2268906"]
[WhiteElo "2108"]
[BlackElo "2372"]
[Result "0-1"]
[Round "3"]
[TimeControl "180+2"]
[Date "2023.07.04"]
[WhiteClock "0:00:08"]
[BlackClock "0:00:47"]
[Board "176"]

1. e4 {[%clk 0:03:00]}  c6 {[%clk 0:03:00]} 2. d4 {[%clk 0:02:59]}  d5 {[%clk 0:03:00]} 3. Nd2 {[%clk 0:02:59]}  dxe4 {[%clk 0:02:59]} 4. Nxe4 {[%clk 0:03:00]}  Bf5 {[%clk 0:02:59]} 5. Ng3 {[%clk 0:03:00]}  Bg6 {[%clk 0:02:59]} 6. Nf3 {[%clk 0:03:00]}  Nd7 {[%clk 0:02:59]} 7. Bd3 {[%clk 0:02:59]}  Ngf6 {[%clk 0:02:58]} 8. O-O {[%clk 0:02:58]}  e6 {[%clk 0:02:58]} 9. Re1 {[%clk 0:02:58]}  Be7 {[%clk 0:02:58]} 10. c4 {[%clk 0:02:54]}  O-O {[%clk 0:02:58]} 11. b3 {[%clk 0:02:54]}  a5 {[%clk 0:02:57]} 12. Bb2 {[%clk 0:02:54]}  a4 {[%clk 0:02:57]} 13. Bxg6 {[%clk 0:02:54]}  hxg6 {[%clk 0:02:56]} 14. Qd3 {[%clk 0:02:46]}  axb3 {[%clk 0:02:54]} 15. axb3 {[%clk 0:02:47]}  Rxa1 {[%clk 0:02:53]} 16. Rxa1 {[%clk 0:02:45]}  c5 {[%clk 0:02:53]} 17. d5 {[%clk 0:02:40]}  exd5 {[%clk 0:02:52]} 18. cxd5 {[%clk 0:02:41]}  Nb6 {[%clk 0:02:51]} 19. Bxf6 {[%clk 0:02:18]}  Bxf6 {[%clk 0:02:50]} 20. Rd1 {[%clk 0:02:14]}  Re8 {[%clk 0:02:40]} 21. d6 {[%clk 0:02:12]}  Qd7 {[%clk 0:02:34]} 22. Ne4 {[%clk 0:02:08]}  Qc6 {[%clk 0:02:04]} 23. Nxf6+ {[%clk 0:01:41]}  gxf6 {[%clk 0:02:03]} 24. Nh4 {[%clk 0:01:28]}  Kg7 {[%clk 0:02:00]} 25. Qg3 {[%clk 0:01:22]}  Re5 {[%clk 0:01:52]} 26. f4 {[%clk 0:01:09]}  Rd5 {[%clk 0:01:49]} 27. Rxd5 {[%clk 0:00:50]}  Qxd5 {[%clk 0:01:49]} 28. h3 {[%clk 0:00:50]}  Nc8 {[%clk 0:01:33]} 29. d7 {[%clk 0:00:42]}  Qxd7 {[%clk 0:01:31]} 30. f5 {[%clk 0:00:39]}  Qd4+ {[%clk 0:01:11]} 31. Kh2 {[%clk 0:00:35]}  g5 {[%clk 0:01:11]} 32. Nf3 {[%clk 0:00:31]}  Qf4 {[%clk 0:01:02]} 33. Qxf4 {[%clk 0:00:25]}  gxf4 {[%clk 0:01:02]} 34. Kg1 {[%clk 0:00:24]}  Nd6 {[%clk 0:01:01]} 35. Nh4 {[%clk 0:00:19]}  Kh6 {[%clk 0:01:00]} 36. Kf2 {[%clk 0:00:19]}  Kg5 {[%clk 0:01:00]} 37. Nf3+ {[%clk 0:00:18]}  Kxf5 {[%clk 0:00:59]} 38. Nd2 {[%clk 0:00:19]}  b5 {[%clk 0:00:56]} 39. Kf3 {[%clk 0:00:18]}  c4 {[%clk 0:00:56]} 40. bxc4 {[%clk 0:00:18]}  bxc4 {[%clk 0:00:56]} 41. g4+ {[%clk 0:00:17]}  fxg3 {[%clk 0:00:55]} 42. Kxg3 {[%clk 0:00:18]}  c3 {[%clk 0:00:55]} 43. Nf3 {[%clk 0:00:16]}  Nb5 {[%clk 0:00:50]} 44. Ne1 {[%clk 0:00:15]}  Nd4 {[%clk 0:00:49]} 45. Nd3 {[%clk 0:00:14]}  c2 {[%clk 0:00:48]} 46. h4 {[%clk 0:00:13]}  Ne2+ {[%clk 0:00:47]} 47. Kf3 {[%clk 0:00:11]}  c1=Q {[%clk 0:00:46]} 48. Nxc1 {[%clk 0:00:09]}  Nxc1 {[%clk 0:00:47]} 49. h5 {[%clk 0:00:10]}  Kg5 {[%clk 0:00:47]} 50. h6 {[%clk 0:00:08]}  Kxh6 {[%clk 0:00:47]} 0-1


[Site "https://www.chess.com"]

[Event "Titled Tuesday Blitz July 4 Late 2023"]
[White "Winkels, Marcel"]
[Black "Zhou, Qiyu"]
[WhiteFideId "1003887"]
[BlackFideId "505161"]
[WhiteElo "2078"]
[BlackElo "2355"]
[Result "0-1"]
[Round "3"]
[TimeControl "180+2"]
[Date "2023.07.04"]
[WhiteClock "0:00:00"]
[BlackClock "0:00:10"]
[Board "179"]

1. e4 {[%clk 0:03:00]}  e5 {[%clk 0:02:58]} 2. Nf3 {[%clk 0:03:00]}  Nc6 {[%clk 0:02:56]} 3. Bb5 {[%clk 0:03:01]}  a6 {[%clk 0:02:55]} 4. Bxc6 {[%clk 0:02:59]}  dxc6 {[%clk 0:02:52]} 5. O-O {[%clk 0:03:00]}  Bg4 {[%clk 0:02:46]} 6. d3 {[%clk 0:02:48]}  Qf6 {[%clk 0:02:43]} 7. Nbd2 {[%clk 0:02:47]}  Bd6 {[%clk 0:02:31]} 8. b3 {[%clk 0:02:46]}  h5 {[%clk 0:02:26]} 9. Nc4 {[%clk 0:02:39]}  O-O-O {[%clk 0:02:22]} 10. Bb2 {[%clk 0:02:38]}  Ne7 {[%clk 0:02:17]} 11. Bxe5 {[%clk 0:01:38]}  Bxe5 {[%clk 0:02:16]} 12. Ncxe5 {[%clk 0:01:36]}  Ng6 {[%clk 0:02:13]} 13. Nxg6 {[%clk 0:01:34]}  Qxg6 {[%clk 0:02:10]} 14. Kh1 {[%clk 0:01:25]}  h4 {[%clk 0:02:06]} 15. h3 {[%clk 0:01:24]}  Be6 {[%clk 0:02:00]} 16. Qd2 {[%clk 0:01:17]}  f6 {[%clk 0:01:53]} 17. Qf4 {[%clk 0:01:14]}  Qh5 {[%clk 0:01:49]} 18. Rad1 {[%clk 0:01:10]}  Rdf8 {[%clk 0:01:48]} 19. c4 {[%clk 0:01:07]}  g5 {[%clk 0:01:46]} 20. Qh2 {[%clk 0:01:04]}  g4 {[%clk 0:01:45]} 21. hxg4 {[%clk 0:01:03]}  Qxg4 {[%clk 0:01:43]} 22. Ng1 {[%clk 0:01:00]}  Rh7 {[%clk 0:01:27]} 23. Nh3 {[%clk 0:00:59]}  Bd7 {[%clk 0:01:25]} 24. f3 {[%clk 0:00:51]}  Qg7 {[%clk 0:01:23]} 25. f4 {[%clk 0:00:46]}  Bg4 {[%clk 0:01:22]} 26. Rde1 {[%clk 0:00:44]}  Rd8 {[%clk 0:01:20]} 27. Re3 {[%clk 0:00:43]}  Qd7 {[%clk 0:01:17]} 28. Qg1 {[%clk 0:00:39]}  Qd4 {[%clk 0:01:13]} 29. Qf2 {[%clk 0:00:37]}  Qc3 {[%clk 0:01:09]} 30. Qe1 {[%clk 0:00:30]}  Qd4 {[%clk 0:01:03]} 31. e5 {[%clk 0:00:29]}  f5 {[%clk 0:00:57]} 32. e6 {[%clk 0:00:29]}  Re7 {[%clk 0:00:55]} 33. Ng5 {[%clk 0:00:28]}  Qf6 {[%clk 0:00:48]} 34. Qa1 {[%clk 0:00:20]}  Qd4 {[%clk 0:00:42]} 35. Qxd4 {[%clk 0:00:19]}  Rxd4 {[%clk 0:00:43]} 36. Rfe1 {[%clk 0:00:18]}  Rxf4 {[%clk 0:00:39]} 37. Nf7 {[%clk 0:00:16]}  Rf2 {[%clk 0:00:35]} 38. Nh6 {[%clk 0:00:13]}  Rxa2 {[%clk 0:00:29]} 39. Re5 {[%clk 0:00:13]}  h3 {[%clk 0:00:24]} 40. gxh3 {[%clk 0:00:11]}  Bf3+ {[%clk 0:00:22]} 41. Kg1 {[%clk 0:00:11]}  Rg7+ {[%clk 0:00:20]} 42. Kf1 {[%clk 0:00:08]}  Bg2+ {[%clk 0:00:20]} 43. Kg1 {[%clk 0:00:07]}  Bxh3+ {[%clk 0:00:19]} 44. Kh1 {[%clk 0:00:07]}  Bg2+ {[%clk 0:00:20]} 45. Kg1 {[%clk 0:00:07]}  Be4+ {[%clk 0:00:17]} 46. Kf1 {[%clk 0:00:05]}  Bxd3+ {[%clk 0:00:17]} 47. R1e2 {[%clk 0:00:03]}  Bxe2+ {[%clk 0:00:14]} 48. Rxe2 {[%clk 0:00:02]}  Rxe2 {[%clk 0:00:14]} 49. Kxe2 {[%clk 0:00:03]}  Kd8 {[%clk 0:00:14]} 50. Nxf5 {[%clk 0:00:02]}  Rg5 {[%clk 0:00:13]} 51. Nd4 {[%clk 0:00:02]}  c5 {[%clk 0:00:12]} 52. Nf3 {[%clk 0:00:01]}  Rg2+ {[%clk 0:00:10]} 53. Ke3 {[%clk 0:00:01]}  Rb2 {[%clk 0:00:10]} 54. Ke4 {[%clk 0:00:01]}  Ke7 {[%clk 0:00:09]} 55. Ke5 {[%clk 0:00:01]}  Re2+ {[%clk 0:00:10]} 56. Kf4 {[%clk 0:00:01]}  Rxe6 {[%clk 0:00:10]} 57. Ng5 {[%clk 0:00:00]}  Rb6 {[%clk 0:00:10]} 0-1


[Site "https://www.chess.com"]

[Event "Titled Tuesday Blitz July 4 Late 2023"]
[White "Svicevic, Rastko"]
[Black "Horokoskii"]
[WhiteFideId "916315"]
[WhiteElo "2353"]
[BlackElo "2074"]
[Result "1-0"]
[Round "3"]
[TimeControl "180+2"]
[Date "2023.07.04"]
[WhiteClock "0:00:47"]
[BlackClock "0:00:15"]
[Board "180"]

1. e4 {[%clk 0:03:00]}  e6 {[%clk 0:02:43]} 2. d4 {[%clk 0:02:59]}  d5 {[%clk 0:02:44]} 3. exd5 {[%clk 0:03:00]}  exd5 {[%clk 0:02:44]} 4. Nf3 {[%clk 0:03:01]}  Bd6 {[%clk 0:02:44]} 5. c4 {[%clk 0:03:00]}  dxc4 {[%clk 0:02:42]} 6. Bxc4 {[%clk 0:02:59]}  Ne7 {[%clk 0:02:43]} 7. h3 {[%clk 0:02:58]}  O-O {[%clk 0:02:40]} 8. O-O {[%clk 0:02:59]}  Nbc6 {[%clk 0:02:34]} 9. Nc3 {[%clk 0:02:58]}  Bf5 {[%clk 0:02:32]} 10. Re1 {[%clk 0:02:57]}  Na5 {[%clk 0:02:27]} 11. Bf1 {[%clk 0:02:53]}  Re8 {[%clk 0:02:23]} 12. Bg5 {[%clk 0:02:50]}  f6 {[%clk 0:02:23]} 13. Bh4 {[%clk 0:02:50]}  Ng6 {[%clk 0:02:21]} 14. Bg3 {[%clk 0:02:47]}  Bxg3 {[%clk 0:02:20]} 15. fxg3 {[%clk 0:02:48]}  Nc6 {[%clk 0:02:20]} 16. Qb3+ {[%clk 0:02:32]}  Kh8 {[%clk 0:02:14]} 17. Qxb7 {[%clk 0:02:33]}  Rxe1 {[%clk 0:02:11]} 18. Rxe1 {[%clk 0:02:31]}  Nxd4 {[%clk 0:02:10]} 19. Kh2 {[%clk 0:02:09]}  Nxf3+ {[%clk 0:02:09]} 20. gxf3 {[%clk 0:02:10]}  Rb8 {[%clk 0:02:06]} 21. Rd1 {[%clk 0:01:49]}  Qe8 {[%clk 0:01:45]} 22. Qxc7 {[%clk 0:01:49]}  Rxb2+ {[%clk 0:01:44]} 23. Bg2 {[%clk 0:01:47]}  Rb8 {[%clk 0:01:33]} 24. Qxa7 {[%clk 0:01:44]}  Ne5 {[%clk 0:01:26]} 25. f4 {[%clk 0:01:42]}  Nc4 {[%clk 0:01:23]} 26. Re1 {[%clk 0:01:22]}  Qf8 {[%clk 0:01:08]} 27. Nd5 {[%clk 0:01:13]}  Re8 {[%clk 0:01:03]} 28. Ne7 {[%clk 0:01:01]}  Bc8 {[%clk 0:00:36]} 29. Qc7 {[%clk 0:00:55]}  Ba6 {[%clk 0:00:31]} 30. Qc6 {[%clk 0:00:52]}  g6 {[%clk 0:00:15]} 31. Nxg6+ {[%clk 0:00:48]}  hxg6 {[%clk 0:00:15]} 32. Rxe8 {[%clk 0:00:47]} 1-0


[Site "https://www.chess.com"]

[Event "Titled Tuesday Blitz July 4 Late 2023"]
[White "Tqebuchava, Zurab"]
[Black "Bazilius, Augustinas"]
[WhiteFideId "13601113"]
[BlackFideId "12832251"]
[WhiteElo "2069"]
[BlackElo "2351"]
[Result "0-1"]
[Round "3"]
[TimeControl "180+2"]
[Date "2023.07.04"]
[WhiteClock "0:00:00"]
[BlackClock "0:00:06"]
[Board "181"]

1. e4 {[%clk 0:02:53]}  c5 {[%clk 0:03:00]} 2. Nf3 {[%clk 0:02:47]}  Nc6 {[%clk 0:03:00]} 3. Bb5 {[%clk 0:02:45]}  g6 {[%clk 0:02:57]} 4. O-O {[%clk 0:02:44]}  Bg7 {[%clk 0:02:57]} 5. Bxc6 {[%clk 0:02:41]}  bxc6 {[%clk 0:02:54]} 6. Re1 {[%clk 0:02:39]}  e5 {[%clk 0:02:51]} 7. d3 {[%clk 0:02:38]}  d6 {[%clk 0:02:51]} 8. h3 {[%clk 0:02:37]}  Ne7 {[%clk 0:02:50]} 9. Nc3 {[%clk 0:02:37]}  O-O {[%clk 0:02:50]} 10. Rf1 {[%clk 0:02:26]}  d5 {[%clk 0:02:45]} 11. Nh2 {[%clk 0:02:19]}  f5 {[%clk 0:02:37]} 12. f4 {[%clk 0:02:08]}  fxe4 {[%clk 0:02:36]} 13. dxe4 {[%clk 0:02:06]}  exf4 {[%clk 0:02:28]} 14. Bxf4 {[%clk 0:01:55]}  Ba6 {[%clk 0:02:25]} 15. Rf3 {[%clk 0:01:43]}  Bxc3 {[%clk 0:02:16]} 16. bxc3 {[%clk 0:01:41]}  dxe4 {[%clk 0:02:16]} 17. Qxd8 {[%clk 0:01:37]}  Raxd8 {[%clk 0:02:14]} 18. Rf2 {[%clk 0:01:36]}  Nd5 {[%clk 0:02:12]} 19. Bh6 {[%clk 0:01:07]}  Rxf2 {[%clk 0:02:09]} 20. Kxf2 {[%clk 0:01:07]}  Nxc3 {[%clk 0:02:10]} 21. Ng4 {[%clk 0:01:01]}  Nd5 {[%clk 0:02:05]} 22. Rd1 {[%clk 0:00:51]}  Kf7 {[%clk 0:01:50]} 23. Ne5+ {[%clk 0:00:48]}  Ke6 {[%clk 0:01:45]} 24. Nxc6 {[%clk 0:00:43]}  Rc8 {[%clk 0:01:37]} 25. Rxd5 {[%clk 0:00:39]}  Rxc6 {[%clk 0:01:16]} 26. Rd8 {[%clk 0:00:38]}  Rc7 {[%clk 0:01:10]} 27. Re8+ {[%clk 0:00:36]}  Kd5 {[%clk 0:01:10]} 28. Ke3 {[%clk 0:00:33]}  Bb7 {[%clk 0:01:05]} 29. Rxe4 {[%clk 0:00:26]}  Rf7 {[%clk 0:01:00]} 30. Rf4 {[%clk 0:00:22]}  Re7+ {[%clk 0:00:57]} 31. Kd2 {[%clk 0:00:22]}  Ba6 {[%clk 0:00:54]} 32. Rf2 {[%clk 0:00:21]}  Bc4 {[%clk 0:00:52]} 33. a3 {[%clk 0:00:20]}  Kc6 {[%clk 0:00:44]} 34. Be3 {[%clk 0:00:18]}  Bd5 {[%clk 0:00:43]} 35. Rf6+ {[%clk 0:00:17]}  Kb5 {[%clk 0:00:42]} 36. Rf2 {[%clk 0:00:16]}  Rd7 {[%clk 0:00:41]} 37. Kc3 {[%clk 0:00:15]}  Be4 {[%clk 0:00:38]} 38. g3 {[%clk 0:00:14]}  Re7 {[%clk 0:00:35]} 39. Bf4 {[%clk 0:00:11]}  Bd5 {[%clk 0:00:26]} 40. Rd2 {[%clk 0:00:10]}  Kc6 {[%clk 0:00:27]} 41. h4 {[%clk 0:00:10]}  Re1 {[%clk 0:00:25]} 42. Rf2 {[%clk 0:00:10]}  Ra1 {[%clk 0:00:25]} 43. Kb2 {[%clk 0:00:09]}  Ra2+ {[%clk 0:00:25]} 44. Kc1 {[%clk 0:00:07]}  Rxa3 {[%clk 0:00:25]} 45. Bd2 {[%clk 0:00:07]}  Rxg3 {[%clk 0:00:24]} 46. Rf6+ {[%clk 0:00:07]}  Kb5 {[%clk 0:00:23]} 47. Rd6 {[%clk 0:00:06]}  Bc4 {[%clk 0:00:21]} 48. Rd7 {[%clk 0:00:06]}  a5 {[%clk 0:00:21]} 49. Rb7+ {[%clk 0:00:05]}  Ka6 {[%clk 0:00:12]} 50. Rc7 {[%clk 0:00:05]}  Kb6 {[%clk 0:00:12]} 51. Rc8 {[%clk 0:00:05]}  a4 {[%clk 0:00:12]} 52. Rb8+ {[%clk 0:00:05]}  Kc6 {[%clk 0:00:13]} 53. Rc8+ {[%clk 0:00:05]}  Kd5 {[%clk 0:00:13]} 54. Rd8+ {[%clk 0:00:04]}  Kc6 {[%clk 0:00:07]} 55. Rc8+ {[%clk 0:00:04]}  Kb6 {[%clk 0:00:08]} 56. Rb8+ {[%clk 0:00:04]}  Kc7 {[%clk 0:00:09]} 57. Ra8 {[%clk 0:00:03]}  Bb5 {[%clk 0:00:08]} 58. Ra5 {[%clk 0:00:02]}  Kb6 {[%clk 0:00:06]} 59. Ra8 {[%clk 0:00:02]}  a3 {[%clk 0:00:06]} 60. Rb8+ {[%clk 0:00:02]}  Kc6 {[%clk 0:00:05]} 61. Rc8+ {[%clk 0:00:02]}  Kb7 {[%clk 0:00:06]} 62. Rxc5 {[%clk 0:00:00]}  Rg1+ {[%clk 0:00:06]} 0-1


[Site "https://www.chess.com"]

[Event "Titled Tuesday Blitz July 4 Late 2023"]
[White "Zherebtsova, Alexandra"]
[Black "Porat, Tori"]
[WhiteFideId "24129518"]
[BlackFideId "30982626"]
[WhiteElo "2338"]
[BlackElo "1998"]
[Result "1-0"]
[Round "3"]
[TimeControl "180+2"]
[Date "2023.07.04"]
[WhiteClock "0:00:08"]
[BlackClock "0:00:03"]
[Board "187"]

1. d4 {[%clk 0:03:00]}  d5 {[%clk 0:02:59]} 2. Nf3 {[%clk 0:02:59]}  Nf6 {[%clk 0:02:59]} 3. c4 {[%clk 0:02:59]}  c6 {[%clk 0:02:58]} 4. Nbd2 {[%clk 0:02:59]}  Bf5 {[%clk 0:02:57]} 5. Nh4 {[%clk 0:02:58]}  Bg6 {[%clk 0:02:54]} 6. Qb3 {[%clk 0:02:59]}  Qc7 {[%clk 0:02:47]} 7. g3 {[%clk 0:02:37]}  e6 {[%clk 0:02:46]} 8. Nxg6 {[%clk 0:02:34]}  hxg6 {[%clk 0:02:46]} 9. Bg2 {[%clk 0:02:34]}  Nbd7 {[%clk 0:02:34]} 10. Nf3 {[%clk 0:02:24]}  Ne4 {[%clk 0:02:26]} 11. O-O {[%clk 0:02:05]}  Ndf6 {[%clk 0:02:24]} 12. Ne5 {[%clk 0:01:50]}  Bd6 {[%clk 0:02:17]} 13. f3 {[%clk 0:01:49]}  Ng5 {[%clk 0:01:56]} 14. Bxg5 {[%clk 0:01:44]}  Bxe5 {[%clk 0:01:54]} 15. dxe5 {[%clk 0:01:44]}  Nd7 {[%clk 0:01:54]} 16. cxd5 {[%clk 0:01:35]}  exd5 {[%clk 0:01:54]} 17. Bf4 {[%clk 0:01:33]}  Nc5 {[%clk 0:01:46]} 18. Qc3 {[%clk 0:01:29]}  Ne6 {[%clk 0:01:46]} 19. Be3 {[%clk 0:01:16]}  g5 {[%clk 0:01:37]} 20. Rfd1 {[%clk 0:01:08]}  Rh5 {[%clk 0:01:12]} 21. b4 {[%clk 0:00:53]}  a6 {[%clk 0:01:11]} 22. a4 {[%clk 0:00:52]}  Kd7 {[%clk 0:01:09]} 23. b5 {[%clk 0:00:37]}  Rah8 {[%clk 0:01:04]} 24. h3 {[%clk 0:00:35]}  f6 {[%clk 0:00:54]} 25. bxc6+ {[%clk 0:00:31]}  bxc6 {[%clk 0:00:53]} 26. f4 {[%clk 0:00:24]}  gxf4 {[%clk 0:00:50]} 27. gxf4 {[%clk 0:00:24]}  fxe5 {[%clk 0:00:44]} 28. fxe5 {[%clk 0:00:23]}  Ng5 {[%clk 0:00:41]} 29. Bxg5 {[%clk 0:00:16]}  Rxg5 {[%clk 0:00:41]} 30. Kh1 {[%clk 0:00:16]}  Rh6 {[%clk 0:00:28]} 31. e4 {[%clk 0:00:16]}  Ke8 {[%clk 0:00:20]} 32. exd5 {[%clk 0:00:15]}  Qd7 {[%clk 0:00:18]} 33. Qxc6 {[%clk 0:00:13]}  Rxc6 {[%clk 0:00:17]} 34. dxc6 {[%clk 0:00:14]}  Qc7 {[%clk 0:00:17]} 35. Rd7 {[%clk 0:00:12]}  Qxe5 {[%clk 0:00:16]} 36. Rad1 {[%clk 0:00:11]}  Qe2 {[%clk 0:00:15]} 37. R7d2 {[%clk 0:00:11]}  Qe5 {[%clk 0:00:11]} 38. Rd8+ {[%clk 0:00:08]}  Ke7 {[%clk 0:00:10]} 39. R8d7+ {[%clk 0:00:08]}  Ke8 {[%clk 0:00:10]} 40. c7 {[%clk 0:00:08]}  Qg3 {[%clk 0:00:03]} 41. c8=Q# {[%clk 0:00:08]} 1-0


[Site "https://www.chess.com"]

[Event "Titled Tuesday Blitz July 4 Late 2023"]
[White "Lutz, Igor Oscar"]
[Black "The_Straightforward_Rook"]
[WhiteFideId "2110806"]
[WhiteElo "1974"]
[BlackElo "2327"]
[Result "1/2-1/2"]
[Round "3"]
[TimeControl "180+2"]
[Date "2023.07.04"]
[WhiteClock "0:00:20"]
[BlackClock "0:01:30"]
[Board "188"]

1. d4 {[%clk 0:02:57]}  d5 {[%clk 0:02:59]} 2. c4 {[%clk 0:02:57]}  e6 {[%clk 0:02:58]} 3. Nf3 {[%clk 0:02:56]}  Nf6 {[%clk 0:02:56]} 4. g3 {[%clk 0:02:57]}  dxc4 {[%clk 0:02:56]} 5. Qa4+ {[%clk 0:02:56]}  Bd7 {[%clk 0:02:55]} 6. Qxc4 {[%clk 0:02:57]}  Bc6 {[%clk 0:02:55]} 7. Bg2 {[%clk 0:02:57]}  Be7 {[%clk 0:02:52]} 8. O-O {[%clk 0:02:57]}  O-O {[%clk 0:02:52]} 9. Nbd2 {[%clk 0:02:51]}  Nbd7 {[%clk 0:02:49]} 10. Qc2 {[%clk 0:02:42]}  a5 {[%clk 0:02:42]} 11. e4 {[%clk 0:02:42]}  a4 {[%clk 0:02:39]} 12. e5 {[%clk 0:02:42]}  Nd5 {[%clk 0:02:39]} 13. Ne4 {[%clk 0:02:39]}  h6 {[%clk 0:02:38]} 14. a3 {[%clk 0:02:31]}  Re8 {[%clk 0:02:33]} 15. Bd2 {[%clk 0:02:27]}  Nf8 {[%clk 0:02:30]} 16. h4 {[%clk 0:02:14]}  Nb6 {[%clk 0:02:20]} 17. Be3 {[%clk 0:02:05]}  Bd5 {[%clk 0:02:19]} 18. Nh2 {[%clk 0:01:56]}  Nc4 {[%clk 0:02:18]} 19. Bxh6 {[%clk 0:01:49]}  gxh6 {[%clk 0:02:18]} 20. Qc1 {[%clk 0:01:43]}  Ng6 {[%clk 0:01:50]} 21. Qxh6 {[%clk 0:01:39]}  Bf8 {[%clk 0:01:50]} 22. Qh5 {[%clk 0:01:32]}  Bg7 {[%clk 0:01:50]} 23. Ng4 {[%clk 0:01:25]}  Bxe4 {[%clk 0:01:49]} 24. Bxe4 {[%clk 0:01:24]}  Nd2 {[%clk 0:01:49]} 25. Bxg6 {[%clk 0:01:20]}  fxg6 {[%clk 0:01:45]} 26. Qxg6 {[%clk 0:01:19]}  Re7 {[%clk 0:01:32]} 27. Nf6+ {[%clk 0:00:37]}  Kf8 {[%clk 0:01:30]} 28. Nh7+ {[%clk 0:00:27]}  Kg8 {[%clk 0:01:30]} 29. Nf6+ {[%clk 0:00:19]}  Kf8 {[%clk 0:01:30]} 30. Nh7+ {[%clk 0:00:19]}  Kg8 {[%clk 0:01:30]} 31. Nf6+ {[%clk 0:00:20]} 1/2-1/2


[Site "https://www.chess.com"]

[Event "Titled Tuesday Blitz July 4 Late 2023"]
[White "kripri"]
[Black "Sainz Aguirre, Ignacio"]
[BlackFideId "5101727"]
[WhiteElo "2319"]
[BlackElo "1945"]
[Result "1-0"]
[Round "3"]
[TimeControl "180+2"]
[Date "2023.07.04"]
[WhiteClock "0:01:02"]
[BlackClock "0:00:00"]
[Board "189"]

1. e4 {[%clk 0:03:00]}  e6 {[%clk 0:02:59]} 2. d4 {[%clk 0:02:59]}  d5 {[%clk 0:03:00]} 3. Nd2 {[%clk 0:02:55]}  c5 {[%clk 0:02:59]} 4. exd5 {[%clk 0:02:55]}  Qxd5 {[%clk 0:02:53]} 5. Ngf3 {[%clk 0:02:54]}  cxd4 {[%clk 0:02:52]} 6. Bc4 {[%clk 0:02:54]}  Qd6 {[%clk 0:02:52]} 7. O-O {[%clk 0:02:54]}  Nf6 {[%clk 0:02:49]} 8. Nb3 {[%clk 0:02:53]}  Nc6 {[%clk 0:02:48]} 9. Nbxd4 {[%clk 0:02:54]}  Nxd4 {[%clk 0:02:47]} 10. Nxd4 {[%clk 0:02:55]}  Bd7 {[%clk 0:02:35]} 11. Re1 {[%clk 0:02:49]}  Qc7 {[%clk 0:02:29]} 12. Bb3 {[%clk 0:02:47]}  O-O-O {[%clk 0:01:57]} 13. c3 {[%clk 0:02:42]}  Bd6 {[%clk 0:01:50]} 14. h3 {[%clk 0:02:37]}  e5 {[%clk 0:01:43]} 15. Nc2 {[%clk 0:02:33]}  Kb8 {[%clk 0:01:39]} 16. Qe2 {[%clk 0:02:32]}  Ka8 {[%clk 0:01:36]} 17. Bg5 {[%clk 0:02:30]}  h5 {[%clk 0:01:24]} 18. Ne3 {[%clk 0:02:23]}  Be6 {[%clk 0:01:02]} 19. Bxe6 {[%clk 0:02:20]}  fxe6 {[%clk 0:01:02]} 20. Nc4 {[%clk 0:02:16]}  e4 {[%clk 0:00:57]} 21. Rad1 {[%clk 0:02:09]}  Bh2+ {[%clk 0:00:47]} 22. Kh1 {[%clk 0:02:09]}  Bf4 {[%clk 0:00:47]} 23. Bxf6 {[%clk 0:02:07]}  gxf6 {[%clk 0:00:46]} 24. Qxe4 {[%clk 0:02:07]}  e5 {[%clk 0:00:41]} 25. Ne3 {[%clk 0:02:02]}  Qb6 {[%clk 0:00:36]} 26. b3 {[%clk 0:01:41]}  Kb8 {[%clk 0:00:30]} 27. c4 {[%clk 0:01:41]}  a5 {[%clk 0:00:26]} 28. Nd5 {[%clk 0:01:39]}  Qxf2 {[%clk 0:00:22]} 29. Re2 {[%clk 0:01:36]}  Qg3 {[%clk 0:00:16]} 30. Kg1 {[%clk 0:01:32]}  Qh2+ {[%clk 0:00:11]} 31. Kf2 {[%clk 0:01:32]}  Rhg8 {[%clk 0:00:06]} 32. Rg1 {[%clk 0:01:24]}  f5 {[%clk 0:00:06]} 33. Qxf5 {[%clk 0:01:16]}  Qg3+ {[%clk 0:00:04]} 34. Kf1 {[%clk 0:01:15]}  Rxd5 {[%clk 0:00:04]} 35. cxd5 {[%clk 0:01:14]}  Qc3 {[%clk 0:00:00]} 36. Qc2 {[%clk 0:01:02]} 1-0


[Site "https://www.chess.com"]